Cogmind - Beta 16.1 @@@ ROGUE MODE // 2026.03.16 @ 14:26:40 Player: Ragnakor Result: Destroyed by Y-54 Guardian with Gatling Laser Performance ------------- Evolutions (3) 1500 Regions Visited (9) 1800 Robots Destroyed (50) 250 Value Destroyed (1980) 1980 Prototype IDs (1) 20 Alien Tech Used (0) 0 Bonus (535) 535 TOTAL SCORE: 6085 Bonus ------- Follower Combat Kills 35 Entered Garrisons 200 Aligned with FarCom 300 Cogmind --------- Core Integrity 0/700 Matter 200/300 Energy 19/100 System Corruption 12% Temperature Cool (27) Movement Walking (130) Location -7/Factory Parts ------- > --- POWER (1) -------- (None) > --- PROPULSION (4) --- Improved Titanium Leg > --- UTILITY (6) ------ Signal Interpreter Modified TNC Improved Melee Analysis Suite System Shield > --- WEAPON (2) ------- Flak Gun Spear > --- INVENTORY (5) ---- Wheel Advanced Terrain Scan Processor Advanced ECM Suite Hacking Suite Peak State ------------ > --- POWER ------------ Improved Deuterium Engine > --- PROPULSION ------- Aluminum Leg Aluminum Leg Aluminum Leg Improved Titanium Leg > --- UTILITY ---------- Signal Interpreter Modified TNC Improved Melee Analysis Suite Target Analyzer Improved Hacking Suite System Restoration Module > --- WEAPON ----------- Particle Gun Spear > --- INVENTORY -------- Wheel Flight Unit Cesium-ion Thruster Advanced Terrain Scan Processor Advanced ECM Suite [Rating: 41] Favorites ----------- Power Nuclear Core Engine Light Ion Engine Power Core Nuclear Core Propulsion Aluminum Leg Leg Aluminum Leg Wheel Wheel Flight Unit VTOL Module Utility Small Storage Unit Device Improved Terrain Scanner Storage Small Storage Unit Processor Signal Interpreter Hackware Improved Hacking Suite Weapon Heavy Flail Energy Gun Particle Gun Energy Cannon Plasma Cannon Ballistic Gun Assault Rifle Ballistic Cannon Improved Light Cannon Launcher Grenade Launcher Impact Weapon Heavy Flail Slashing Weapon Katana Piercing Weapon Spear Build | -11 -10 -10 -9 -9 -9 -8 -8 -8 -7 ------- Run | Yrd Mat Min Mat Min Exi Min Mat Gar Fac Slots Evolved 6 | . . . 2 . . . 2 . 2 Power . | . . . . . . . . . . Propulsion 2 | . . . 2 . . . . . . Utility 4 | . . . . . . . 2 . 2 Weapon . | . . . . . . . . . . Parts Attached 65 | 7 10 . 9 . . 2 6 5 26 Power 9 | 1 3 . . . . . 1 . 4 Engine 5 | 1 3 . . . . . . . 1 Core 4 | . . . . . . . 1 . 3 Reactor . | . . . . . . . . . . Propulsion 23 | 2 4 . 4 . . 2 1 3 7 Treads . | . . . . . . . . . . Leg 14 | 2 4 . . . . . . 2 6 Wheel 1 | . . . . . . . . . 1 Hover . | . . . . . . . . . . Flight 8 | . . . 4 . . 2 1 1 . Utility 16 | 2 . . 3 . . . 4 . 7 Device 7 | 1 . . 2 . . . 1 . 3 Storage 1 | 1 . . . . . . . . . Processor 6 | . . . 1 . . . 3 . 2 Hackware 2 | . . . . . . . . . 2 Protection . | . . . . . . . . . . Artifact . | . . . . . . . . . . Weapon 17 | 2 3 . 2 . . . . 2 8 Energy Gun 4 | . . . . . . . . 1 3 Energy Cannon 2 | . . . . . . . . . 2 Ballistic Gun 4 | 2 1 . . . . . . . 1 Ballistic Cannon 2 | . 2 . . . . . . . . Launcher 1 | . . . . . . . . 1 . Special Weapon . | . . . . . . . . . . Impact Weapon 1 | . . . 1 . . . . . . Slashing Weapon 1 | . . . 1 . . . . . . Piercing Weapon 2 | . . . . . . . . . 2 Special Melee Weapon . | . . . . . . . . . . Unidentified Prototypes 1 | . . . . . . . 1 . . Corrupted Parts 4 | . . . . . . . . . 4 System Corruption 8 | . . . . . . . . . 8 Parts Lost 34 | . 4 . . . . 4 . 5 21 Power 5 | . 2 . . . . 1 . . 2 Propulsion 14 | . . . . . . 2 . 3 9 Utility 5 | . . . . . . . . . 5 Weapon 10 | . 2 . . . . 1 . 2 5 Highest Loss Streak 9 | . 3 . . . . 4 . 3 9 To Critical Strikes . | . . . . . . . . . . Average Backups 6 | 1 6 8 5 6 6 7 6 6 6 Power . | . . . . . . . . 1 . Propulsion 3 | . 3 6 2 3 3 3 3 3 2 Utility 2 | . 1 2 2 2 2 3 1 1 2 Weapon . | . 1 . . 1 1 1 1 . . Tool/Special . | . . . . . . . . . . Unused Backups 11 | . 3 . . . . . . . 8 Power 2 | . 1 . . . . . . . 1 Propulsion 1 | . 1 . . . . . . . . Utility 7 | . . . . . . . . . 7 Weapon 1 | . 1 . . . . . . . . Tool/Special . | . . . . . . . . . . Average Slot Usage (%) 92 | . 98 100 92 100 100 79 82 96 88 Engine 6 | . 13 14 11 11 11 1 . . 2 Core 2 | . . . . . . . 1 9 3 Leg 17 | . 28 28 1 . . . . 9 26 Flight 14 | . . . 41 44 44 40 36 26 . Device 6 | . 14 14 2 . . . 7 . 5 Storage 9 | . 14 14 11 11 11 11 9 9 3 Processor 15 | . . . 7 11 11 11 19 27 28 Hackware 1 | . . . . . . . . . 4 Energy Gun 1 | . . . . . . . . 3 2 Ballistic Gun 4 | . 17 . . . . . . . . Ballistic Cannon 5 | . 10 28 11 11 11 10 2 . . Impact Weapon 4 | . . . 3 11 11 3 6 8 3 Piercing Weapon 1 | . . . . . . . . . 3 Peak Build Rating 41 | 9 12 12 17 17 17 17 26 28 41 Average Rating 21 | 6 10 12 15 17 17 11 22 25 33 On Entrance 14 | . 9 12 12 17 17 17 11 26 22 Avg Prop Armor Cover (%) 9 | . . . . . . 9 10 . 6 Naked Turns . | . . . . . . . . . . Heaviest Build 20 | 13 19 19 17 17 17 17 16 18 20 Greatest Support 50 | 20 20 20 16 16 16 16 17 40 50 Greatest Overweight (x) 6 | 3 . . 1 1 1 1 1 1 6 Average Overweight (x) . | . . . . 1 1 . . . . Largest Inventory Capacity 8 | 8 8 8 8 8 8 8 8 8 8 Average Capacity 7 | 7 8 8 8 8 8 8 8 8 6 Most Carried 8 | 3 8 8 7 6 7 7 8 8 8 Average Carried 6 | 1 6 8 5 6 6 6 6 6 6 Final Capacity 8 | 8 8 8 8 8 8 8 8 8 5 Final Carried 8 | 3 8 8 6 6 7 7 8 6 4 Class Distribution -------------------- 35% | Mutant 25% | Assassin 18% | Scavenger-Mutant 8% | Scout 4% | Scavenger-Assassin 3% | Sprinter Dominant Class ---------------- Scavenger-Mutant | -10/Materials Mutant | -10/Mines Sprinter | -9/Materials Mutant | -9/Mines Mutant | -9/Exiles Mutant | -8/Mines Scout | -8/Materials Assassin | -8/Garrison Assassin | -7/Factory Resources | -11 -10 -10 -9 -9 -9 -8 -8 -8 -7 ----------- Run | Yrd Mat Min Mat Min Exi Min Mat Gar Fac Matter Collected 1497 | 263 354 88 128 . . 42 69 310 243 Remotely . | . . . . . . . . . . Salvage Created 1640 | 45 268 . 45 . . 26 . 511 745 Parts 80 | 4 20 . 1 . . 4 . 16 35 Haulers Intercepted 1 | . 1 . . . . . . . . Recyclers Shooed 2 | 1 . . . . . 1 . . . Parts Field Recycled . | . . . . . . . . . . Retrieved Matter . | . . . . . . . . . . Parts Self-Destructed . | . . . . . . . . . . Prevented . | . . . . . . . . . . Parts Restored . | . . . . . . . . . . Kills | -11 -10 -10 -9 -9 -9 -8 -8 -8 -7 ------- Run | Yrd Mat Min Mat Min Exi Min Mat Gar Fac Combat Hostiles Destroyed 40 | . 8 . 1 . . 4 . 14 13 Melee 7 | . . . . . . . . . 7 Guns 9 | . 5 . . . . . . 4 . Cannons 9 | . 3 . . . . 3 . . 3 AOE 9 | . . . . . . . . 9 . Classes Destroyed 10 | 1 5 . 1 . . . . 1 2 Worker 2 | . 1 . . . . . . . 1 Builder 1 | . . . . . . . . . 1 Tunneler 3 | 2 . . . . . . . . 1 Hauler 1 | . 1 . . . . . . . . Watcher 3 | . 2 . . . . . . . 1 Swarmer 7 | . 3 . . . . 4 . . . Grunt 24 | . 5 . . . . . . 13 6 Duelist 1 | . . . . . . . . 1 . Sentry 4 | . . . 1 . . . . . 3 Programmer 4 | . . . . . . . . . 4 Best Kill Streak 4 | 2 3 . 1 . . 4 . 3 2 Combat Bots Only 4 | . 3 . 1 . . 4 . 3 2 Max Kills in Single Turn 3 | 1 1 . 1 . . 1 . 3 1 Gunslinging . | . . . . . . . . . . Exploded 3 | . . . . . . . . 3 . Melee 1 | . . . . . . . . . 1 Uniques/NPCs Destroyed . | . . . . . . . . . . Combat | -11 -10 -10 -9 -9 -9 -8 -8 -8 -7 -------- Run | Yrd Mat Min Mat Min Exi Min Mat Gar Fac Hostile Shots Fired 498 | . 85 . 2 . . 68 . 75 268 Missed 156 | . 27 . 1 . . 21 . 29 78 Hits 342 | . 58 . 1 . . 47 . 46 190 Projectile 342 | . 58 . 1 . . 47 . 46 190 Critical Strikes 11 | . 1 . 1 . . 1 . 5 3 Part Disruptions 2 | . . . . . . . . . 2 Damage Taken 4099 | . 695 . 32 . . 383 . 702 2287 Core 1129 | . 117 . . . . 99 . 213 700 Absorbed by Shields 8 | . . . . . . . . 8 . Regen/Repaired (Parts) 196 | . 62 . 14 . . . . . 120 Core Remaining (%) 72 | 100 . 53 . . . 75 . 61 . Volleys Fired 162 | 5 57 . 7 . . 14 . 47 32 Largest 2 | 2 2 . 1 . . 1 . 1 2 Hottest 100 | 40 66 . 33 . . 33 . 45 100 Shots Fired 220 | 10 105 . 7 . . 14 . 47 37 Gun 124 | 10 72 . . . . . . 29 13 Cannon 78 | . 33 . 7 . . 14 . . 24 Launcher 18 | . . . . . . . . 18 . Special . | . . . . . . . . . . Kinetic 137 | 10 105 . 7 . . 14 . . 1 Thermal 18 | . . . . . . . . . 18 Explosive 18 | . . . . . . . . 18 . Electromagnetic 47 | . . . . . . . . 29 18 Robot Hit Streak 17 | 4 6 . 1 . . 3 . 17 10 Robot Miss Streak 5 | 2 4 . 3 . . 2 . 4 5 Penetration Max . | . . . . . . . . . . Secondary Targets 1 | . 1 . . . . . . . . Max Gunslinging Chain 1 | . 1 . . . . . . . . Shots Hit Robots 164 | 7 52 . 3 . . 7 . 31 64 Core Hits 83 | 3 19 . . . . 3 . 38 20 Critical Kills . | . . . . . . . . . . Critical Parts Destroyed 6 | . 1 . 1 . . . . . 4 Critical Strikes 15 | . 3 . 2 . . . . . 10 Destroy 1 | . 1 . . . . . . . . Blast 3 | . 2 . 1 . . . . . . Corrupt 1 | . . . . . . . . . 1 Smash 5 | . . . 1 . . . . . 4 Impale 5 | . . . . . . . . . 5 Melee Attacks 72 | . . . 1 . . 2 10 5 54 Impact 38 | . . . 1 . . 2 10 5 20 Slashing . | . . . . . . . . . . Piercing 34 | . . . . . . . . . 34 Sneak Attacks 5 | . . . . . . . . . 5 Combat Hostiles . | . . . . . . . . . . Follow-up Attacks 1 | . . . . . . . . . 1 Damage Inflicted 4639 | 95 818 . 95 . . 191 . 1316 2124 Guns 997 | 95 389 . . . . . . 354 159 Cannons 1021 | . 426 . 44 . . 155 . . 396 Explosions 963 | . . . . . . . . 890 73 Melee 1651 | . . . 51 . . 32 . 72 1496 Ramming 7 | . 3 . . . . 4 . . . Kinetic 1124 | 95 815 . 44 . . 155 . . 15 Thermal 367 | . . . . . . . . . 367 Explosive 890 | . . . . . . . . 890 . Electromagnetic 600 | . . . . . . . . 354 246 Impact 828 | . . . 51 . . 32 . 72 673 Slashing . | . . . . . . . . . . Piercing 823 | . . . . . . . . . 823 Highest Corruption 12 | . 2 2 2 2 2 2 . . 12 Average Corruption 3 | . 2 2 2 2 2 2 . . 7 Corruption Purged 5 | . . . . . . . . . 5 Corruption Blocked . | . . . . . . . . . . Effects 38 | . 10 . 1 1 3 3 . . 20 Message Errors 10 | . 1 . . . 1 . . . 8 Matter Fused 11 | . 3 . . . . 1 . . 7 Heat Flow Errors 4 | . 3 . . . 1 . . . . Energy Discharges 7 | . . . . 1 1 1 . . 4 Data Loss (minor) 3 | . 3 . . . . . . . . Data Loss (major) 2 | . . . 1 . . 1 . . . Misfires 1 | . . . . . . . . . 1 Overload Shots . | . . . . . . . . . . Overflow Damage 560 | . 17 . 58 . . 12 . 46 427 Projectiles 25 | . 17 . 7 . . . . . 1 Explosions 15 | . . . . . . . . 15 . Melee 520 | . . . 51 . . 12 . 31 426 Knockbacks 19 | . 7 . 1 . . 5 . 1 5 Impact 7 | . . . . . . 1 . 1 5 Kinetic 12 | . 7 . 1 . . 4 . . . Secondary . | . . . . . . . . . . Self-Inflicted Damage 25 | . . . . . . 2 . 12 11 Shots 3 | . . . . . . . . 2 1 Rammed 1 | . . . . . . 1 . . . Targets Rammed 4 | . 2 1 . . . 1 . . . Kicked 3 | . 2 1 . . . . . . . Crushed . | . . . . . . . . . . Highest Temperature 368 | . 180 . 24 . 145 . . 90 368 Average Temperature 63 | . 34 . 7 . 77 . . 23 123 Received Heat Transfer 1488 | . 279 . 27 . . . . 492 690 Effects 4 | . . . . . . . . . 4 Interference 4 | . . . . . . . . . 4 Siege Activations . | . . . . . . . . . . Martial Activations . | . . . . . . . . . . Shielding Activations . | . . . . . . . . . . Robots Disrupted . | . . . . . . . . . . Combat Hostiles . | . . . . . . . . . . Robots Corrupted 8 | . . . 1 . . 1 . 1 5 Combat Hostiles 5 | . . . 1 . . 1 . 1 2 Parts Fried 10 | . . . . . . 1 . 2 7 Impact Corruptions 15 | . . . 1 . . 1 . 1 12 Robots Melted . | . . . . . . . . . . Combat Hostiles . | . . . . . . . . . . Parts Melted . | . . . . . . . . . . Heat Transferred 637 | . . . . . . . . . 637 Parts Sabotaged . | . . . . . . . . . . Parts Stolen . | . . . . . . . . . . Parts Stripped . | . . . . . . . . . . Power Chain Reactions 1 | . . . . . . . . . 1 Alert | -11 -10 -10 -9 -9 -9 -8 -8 -8 -7 ------- Run | Yrd Mat Min Mat Min Exi Min Mat Gar Fac Maximum Alert Level 2 | . . . . . . . . 2 1 Low Security (%) 87 | 100 100 100 100 100 . 100 100 33 92 Level 1 11 | . . . . . . . . 56 7 Level 2 1 | . . . . . . . . 10 . Level 3 . | . . . . . . . . . . Level 4 . | . . . . . . . . . . Level 5 . | . . . . . . . . . . High Security . | . . . . . . . . . . Max Security . | . . . . . . . . . . Peak Influence 442 | 10 90 3 50 10 . 60 3 442 239 Initial 239 | . . 3 . 10 . . 3 3 239 Average 71 | . 16 . 21 2 . 28 . 253 79 Influence Increases 1502 | 10 252 . 201 . . 90 13 504 432 Destroy 0b10 Robot/C 860 | . 160 . 80 . . 80 . 280 260 Destroy 0b10 Robot/NC 55 | 10 20 . 5 . . . . . 20 Destroy Leader 170 | . 46 . 22 . . 10 . 10 82 Allied During Kill 7 | . . . 7 . . . . . . Successful Hack 42 | . 22 . 12 . . . 5 . 3 Disable Machine 60 | . . . 30 . . . . . 30 Anti-Garrison Action 100 | . . . . . . . . 100 . Destroy Structure 103 | . 4 . . . . . 8 84 7 Partial Spotted 15 | . . . . . . . . . 15 Lose Combat Pursuer 90 | . . . 45 . . . . 30 15 Influence Decreases 1472 | 10 243 9 172 29 . 80 18 52 859 Entered New Map 252 | . . 6 . 19 . . 7 2 218 Time Decay 864 | 10 233 3 73 10 . 60 11 . 464 Lost Part 257 | . 10 . . . . 20 . 50 177 Lost Ally 40 | . . . 40 . . . . . . Purge Threat 59 | . . . 59 . . . . . . Squads Dispatched 11 | . 3 . 3 . . . . . 5 Investigation 6 | . 3 . 1 . . . . . 2 Extermination 3 | . . . . . . . . . 3 Reinforcement 2 | . . . 2 . . . . . . Assault . | . . . . . . . . . . Garrison . | . . . . . . . . . . Intercept . | . . . . . . . . . . Searches Triggered . | . . . . . . . . . . Construction Impeded . | . . . . . . . . . . Haulers Reinforced . | . . . . . . . . . . Active Scanning Responses . | . . . . . . . . . . Cargo Convoy Interrupts . | . . . . . . . . . . Stealth | -11 -10 -10 -9 -9 -9 -8 -8 -8 -7 --------- Run | Yrd Mat Min Mat Min Exi Min Mat Gar Fac Distress Signals 3 | . 1 . 1 . . . . . 1 Communications Jammed . | . . . . . . . . . . Distress Signals . | . . . . . . . . . . Times Spotted 71 | . 18 . 8 . . 4 1 20 20 Peak Tracking Total 7 | . 5 . 5 . . 4 1 7 4 Tactical Retreats 3 | . . . 1 . . . . 1 1 Traps | -11 -10 -10 -9 -9 -9 -8 -8 -8 -7 ------- Run | Yrd Mat Min Mat Min Exi Min Mat Gar Fac Traps Triggered 15 | . 4 . 2 . . . . 7 2 Indirectly . | . . . . . . . . . . Trap Hack Attempts . | . . . . . . . . . . Triggered . | . . . . . . . . . . Disarmed . | . . . . . . . . . . Reprogrammed . | . . . . . . . . . . Reused . | . . . . . . . . . . Traps Extracted . | . . . . . . . . . . Installed . | . . . . . . . . . . Triggered . | . . . . . . . . . . Machines | -11 -10 -10 -9 -9 -9 -8 -8 -8 -7 ---------- Run | Yrd Mat Min Mat Min Exi Min Mat Gar Fac Machines Disabled 5 | . . . 2 . . . . 1 2 Max in Single Turn 1 | . . . 1 . . . . 1 1 Garrison Relay 1 | . . . . . . . . 1 . Machines Repaired . | . . . . . . . . . . Machines Dismantled . | . . . . . . . . . . Machines Sabotaged . | . . . . . . . . . . Overloaded Fab Kills . | . . . . . . . . . . Hacking | -11 -10 -10 -9 -9 -9 -8 -8 -8 -7 --------- Run | Yrd Mat Min Mat Min Exi Min Mat Gar Fac Machines Accessed 24 | . 10 . 4 . . . 4 1 5 Terminals 14 | . 8 . 3 . . . 2 1 . Fabricators 2 | . . . . . . . . . 2 Repair Stations 6 | . 1 . 1 . . . 1 . 3 Recycling Units 1 | . 1 . . . . . . . . Scanalyzers . | . . . . . . . . . . Garrison Access 1 | . . . . . . . 1 . . Total Hacks 83 | . 36 . 18 . . . 12 3 14 Successful 44 | . 18 . 10 . . . 8 . 8 Failed 39 | . 18 . 8 . . . 4 3 6 Catastrophic 6 | . 3 . 2 . . . . . 1 Database Lockouts . | . . . . . . . . . . Manual 52 | . 23 . 15 . 1 . 8 . 5 Terminals 52 | . 27 . 14 . . . 8 3 . Fabricators 3 | . . . . . . . . . 3 Repair Stations 22 | . 5 . 4 . . . 2 . 11 Recycling Units 4 | . 4 . . . . . . . . Scanalyzers . | . . . . . . . . . . Garrison Access 2 | . . . . . . . 2 . . Terminal Hacks 8 | . 4 . 3 . . . 1 . . Terminal Index 1 | . . . 1 . . . . . . Unreport Threat 1 | . . . 1 . . . . . . Recall Investigation 2 | . 1 . 1 . . . . . . Hauler Manifests 1 | . 1 . . . . . . . . Registered Components 2 | . 1 . . . . . 1 . . Zone Layout 1 | . 1 . . . . . . . . Fabricator Hacks 2 | . . . . . . . . . 2 Network Status 2 | . . . . . . . . . 2 Repair Station Hacks 12 | . 4 . 2 . . . 1 . 5 Scan Component 7 | . 2 . 1 . . . 1 . 3 Repair 5 | . 2 . 1 . . . . . 2 Recycling Unit Hacks 2 | . 2 . . . . . . . . Process 1 | . 1 . . . . . . . . Report Inventory 1 | . 1 . . . . . . . . Scanalyzer . | . . . . . . . . . . Garrison Access Hacks 2 | . . . . . . . 2 . . Unlock Access 1 | . . . . . . . 1 . . Coupler Status 1 | . . . . . . . 1 . . Unauthorized Hacks 18 | . 8 . 5 . . . 4 . 1 Terminals 14 | . 7 . 4 . . . 3 . . Assimilate 2 | . 2 . . . . . . . . Botnet 9 | . 4 . 3 . . . 2 . . Operators 3 | . 1 . 1 . . . 1 . . Fabricators . | . . . . . . . . . . Repair Stations 4 | . 1 . 1 . . . 1 . 1 Mechanics 4 | . 1 . 1 . . . 1 . 1 Recycling Units . | . . . . . . . . . . Scanalyzers . | . . . . . . . . . . Garrison Access . | . . . . . . . . . . Data Cores Recovered . | . . . . . . . . . . Used . | . . . . . . . . . . Hacking Detections 23 | . 10 . 4 . . . 3 1 5 Full Trace Events 6 | . 3 . . . . . . 1 2 Feedback Events . | . . . . . . . . . . Feedback Blocked . | . . . . . . . . . . Robot Schematics Acquired . | . . . . . . . . . . Robots Built . | . . . . . . . . . . Authchips . | . . . . . . . . . . Time . | . . . . . . . . . . Total Robot Build Rating . | . . . . . . . . . . Part Schematics Acquired . | . . . . . . . . . . Parts Built . | . . . . . . . . . . Authchips . | . . . . . . . . . . Time . | . . . . . . . . . . Total Part Build Rating . | . . . . . . . . . . Part Studies Acquired . | . . . . . . . . . . Parts Repaired 5 | . 2 . 1 . . . . . 2 Time 154 | . 52 . 38 . . . . . 64 Parts Recycled . | . . . . . . . . . . Recycled Matter 43 | . 43 . . . . . . . . Retrieved Matter . | . . . . . . . . . . Retrieved Components . | . . . . . . . . . . Parts Scanalyzed . | . . . . . . . . . . Part Schematics Acquired . | . . . . . . . . . . Parts Damaged . | . . . . . . . . . . Bothacking | -11 -10 -10 -9 -9 -9 -8 -8 -8 -7 ------------ Run | Yrd Mat Min Mat Min Exi Min Mat Gar Fac Used RIF Installer . | . . . . . . . . . . Robots Hacked . | . . . . . . . . . . Non-combat . | . . . . . . . . . . Combat . | . . . . . . . . . . Robot Hacks Applied . | . . . . . . . . . . Relay Couplers Released 5 | . . . . . . . . 5 . Machine Destruction 5 | . . . . . . . . 5 . Fabnet Peak Effective % . | . . . . . . . . . . Robots Rewired . | . . . . . . . . . . Allies Hacked . | . . . . . . . . . . Hacks Repelled . | . . . . . . . . . . Allies | -11 -10 -10 -9 -9 -9 -8 -8 -8 -7 -------- Run | Yrd Mat Min Mat Min Exi Min Mat Gar Fac Total Allies 3 | . . 3 . . . . . . . Largest Group 3 | . . 3 3 . . . . . . Highest-Rated Group 40 | . . 40 40 . . . . . . Highest-Rated Ally 16 | . . 16 16 . . . . . . Total Orders . | . . . . . . . . . . Ally Attacks 29 | . . . 29 . . . . . . Total Damage 297 | . . . 297 . . . . . . Kills 4 | . . . 4 . . . . . . Allies Corrupted . | . . . . . . . . . . Allies Melted . | . . . . . . . . . . Intel | -11 -10 -10 -9 -9 -9 -8 -8 -8 -7 ------- Run | Yrd Mat Min Mat Min Exi Min Mat Gar Fac Active Infowar (turns) 3537 | 34 1015 200 16 . . . 312 627 1333 Optics 1363 | . . . . . . . 50 627 686 Sensors 840 | . . . 2 . . . . . 838 Terrain 1465 | 34 1015 200 12 . . . 204 . . Seismic 2 | . . . 2 . . . . . . T.N.C. 2272 | . . . . . . . 312 627 1333 Robot Analysis Total . | . . . . . . . . . . Derelict Logs Recovered . | . . . . . . . . . . Drone Launches . | . . . . . . . . . . Drone Recoveries . | . . . . . . . . . . Exploration | -11 -10 -10 -9 -9 -9 -8 -8 -8 -7 ------------- Run | Yrd Mat Min Mat Min Exi Min Mat Gar Fac Turns Passed 4326 | 112 1015 200 239 83 244 159 314 627 1333 Spaces Moved 3134 | 63 653 161 406 71 230 118 288 395 749 Core 16 | 15 . . . . . . . . 1 Treads . | . . . . . . . . . . Legs 1707 | 48 653 161 . . . . . 103 742 Wheels 6 | . . . . . . . . . 6 Hover . | . . . . . . . . . . Flight 1405 | . . . 406 71 230 118 288 292 . Fastest Speed 26 | 50 120 120 26 106 106 29 27 27 95 Average Speed 96 | 120 120 120 38 106 106 102 49 76 124 Slowest Speed 350 | 200 120 120 106 106 106 114 114 120 350 Overloaded Moves . | . . . . . . . . . . Propulsion Burnouts . | . . . . . . . . . . Robots Hopped 1 | . . . 1 . . . . . . Potential Cave-ins . | . . . . . . . . . . Cave-ins Triggered . | . . . . . . . . . . Exploration Rate (%) 34 | 4 88 41 23 19 62 22 21 49 15 Regions Visited 9 Branch Regions 4 Pre-discovered Areas . | . . . . . . . . . . Known Exits Taken 5 | . . . 1 1 1 1 1 . . Unknown Exits Taken 3 | 1 1 1 . . . . . . . Scrap Searched 1 | . . 1 . . . . . . . Spaces Dug 14 | . . . . . . . 9 . 5 Terrain Destroyed 94 | . 4 . . . . . 9 73 8 Melee 14 | . . . . . . . 9 . 5 Projectile 4 | . 4 . . . . . . . . AOE 76 | . . . . . . . . 73 3 Terrain Rammed . | . . . . . . . . . . Walls Destroyed . | . . . . . . . . . . Machines Disabled . | . . . . . . . . . . Actions | -11 -10 -10 -9 -9 -9 -8 -8 -8 -7 --------- Run | Yrd Mat Min Mat Min Exi Min Mat Gar Fac Total 4088 | 86 784 167 478 78 230 138 442 662 1023 Wait 480 | 9 46 6 50 8 . . 130 96 135 Move 3124 | 62 652 160 403 70 229 117 288 394 749 Hop 1 | . . . 1 . . . . . . Pick Up 29 | 3 9 . 2 . 1 . 5 1 8 Fast Attach 36 | 7 2 . 2 . . 2 1 1 21 Attach 17 | . 2 . 2 . . 1 2 6 4 Detach 5 | . . . 1 . . 1 . 2 1 Swap 34 | . 7 . 6 . . . 4 5 12 Drop 20 | . 7 . 3 . . . 2 . 8 Fire 162 | 5 57 . 7 . . 14 . 47 32 Melee 71 | . . . 1 . . 2 10 5 53 Ram 1 | . . . . . . 1 . . . Kick 3 | . 2 1 . . . . . . . Crush . | . . . . . . . . . . Escape Stasis 105 | . . . . . . . . 105 . Rewire . | . . . . . . . . . . Trap . | . . . . . . . . . . Miscellaneous . | . . . . . . . . . . Route ------- -11/Scrapyard -10/Materials (discovered 4 exits: *Mat x2 / [*Min x2]) -10/Mines -9/Materials -9/Mines -9/Exiles -8/Mines -8/Materials -8/Garrison (discovered 2 exits: *Fac x2) -7/Factory History --------- Turn | Location | Event 5 | -11/Scrapyard | Discovered new exit (range 15) 113 | -11/Scrapyard | Entered Materials 302 | -10/Materials | Repaired Assault Rifle 328 | -10/Materials | Repaired Aluminum Leg 411 | -10/Materials | Discovered new exit (range 12) 467 | -10/Materials | Discovered new exit (range 13) 536 | -10/Materials | Build established: Scavenger-Mutant 785 | -10/Materials | Lost 3 parts (1p2w) 797 | -10/Materials | Discovered new exit (range 11) 949 | -10/Materials | Discovered new exit (range 13) 1121 | -10/Materials | Build established: Mutant 1128 | -10/Materials | Entered Mines 1136 | -10/Mines | Assisted by bots powering up and referring to "LRC-V3" 1307 | -10/Mines | Discovered new exit (range 9) 1328 | -10/Mines | Entered Materials 1328 | -9/Materials | Accompanied by 3 allies 1328 | -9/Materials | Evolved 2 slots: Propulsion x2 1375 | -9/Materials | Repaired Imp. Terrain Scanner 1481 | -9/Materials | Met 8R-AWN 1492 | -9/Materials | Discovered new exit (range 10) 1566 | -9/Materials | Identified exit to Mines 1567 | -9/Materials | Entered Mines 1568 | -9/Mines | Followed 8R-AWN into the Mines 1645 | -9/Mines | Discovered new exit (range 5) 1649 | -9/Mines | Identified exit to Exiles 1650 | -9/Mines | Entered Exiles 1676 | -9/Exiles | Welcomed by 8R-AWN 1694 | -9/Exiles | Met EX-HEX 1727 | -9/Exiles | Met EX-BIN 1740 | -9/Exiles | Aligned with FarCom system 1741 | -9/Exiles | Given EX-Vault access code 1767 | -9/Exiles | Opened EX-Vault 1772 | -9/Exiles | Found Prototype Processor 1797 | -9/Exiles | Warned to stay clear of 0b10 Research branches 1827 | -9/Exiles | Met EX-DEC 1875 | -9/Exiles | Discovered new exit (range 15) 1888 | -9/Exiles | Identified exit to Mines 1894 | -9/Exiles | Left Exiles lab with Modified TNC 1894 | -9/Exiles | Entered Mines 1964 | -8/Mines | Lost 4 parts (1p2n1w) 1985 | -8/Mines | Discovered new exit (range 9) 1995 | -8/Mines | Identified exit to Materials 2053 | -8/Mines | Entered Materials 2053 | -8/Materials | Evolved 2 slots: Utility x2 2053 | -8/Materials | Identified Modified TNC 2367 | -8/Materials | Identified exit to Garrison 2367 | -8/Materials | Entered Garrison 2403 | -8/Garrison | Triggered checkpoint 2432 | -8/Garrison | Garrison Relay disabled 2451 | -8/Garrison | Build established: Scout 2575 | -8/Garrison | Triggered checkpoint 2643 | -8/Garrison | Discovered new exit (range 19) 2645 | -8/Garrison | Triggered checkpoint 2803 | -8/Garrison | Triggered checkpoint 2840 | -8/Garrison | Lost 3 parts (2n1w) 2841 | -8/Garrison | Build established: Assassin 2899 | -8/Garrison | Discovered new exit (range 9) 2993 | -8/Garrison | Identified exit to Factory 2994 | -8/Garrison | Entered Factory 2994 | -7/Factory | Evolved 2 slots: Utility x2 3325 | -7/Factory | Repaired Nuclear Core 3449 | -7/Factory | Repaired Aluminum Leg 3723 | -7/Factory | Core integrity fell below 50% 3761 | -7/Factory | Lost 8 parts (1p4n3u) 3812 | -7/Factory | Lost 3 parts (1n2w) 3835 | -7/Factory | System corruption reached 10% 4314 | -7/Factory | Core integrity fell below 20% 4327 | -7/Factory | Destroyed by Y-54 Guardian with Gatling Laser Last Messages --------------- 04308_ K-01 Serf collects debris. 04310_ K-01 Serf destroyed. 04311_ K-01 Serf collects debris. 04312_ Shock Rifle destroyed. 04313_ Aluminum Leg destroyed. 04313_ Imp. Sensor Array destroyed. 04314_ K-01 Serf collects debris. 04316_ K-01 Serf destroyed. 04316_ P-60 Hacker suffers critical hit (Impale). 04316_ Destroyed Shock Rifle. 04317_ JALLYJ&<=:XIMG=XZSDN6TT>TRTRMZ69L P 04319_ Imp. Hacking Suite destroyed. 04320_ P-60 Hacker suffers critical hit (Impale). 04320_ P-60 Hacker destroyed. 04325_ Acquired Corrupted Flak Gun. 04325_ Integrated Corrupted Flak Gun (+2). 04325_ Complication: Energy sink damages Corrupted Flak Gun (-26). Map ----- +----------------------------------------------------+ | | | | | ?????????????????????????????????????????????????? | | ?????????????????????????????????????????????????? | | ?????????????????????????????????################# | | ?????????????????????????????????# # | | ?????????????????????????????????# """" # "" " | | ?????????????????????????????????# """" # "" " | | ?????????????????????????????????# """" # """ " | | ?????????????????????????????????# """" # """ " | | ?????????????????????????????????# """" # """ " | | ?????????????????????????????????# """" # | | ?????????????????????????????????# # * | | ????????????????????????????##############+####+## | | ??????????????????????????? | | ??????????????????????????? | | ??????????????????????????? | | ????????????????????????????##############/####### | | ???????????### ??????????????????????# # | | ???????????# ################????# ### | | ???????????# ###### #?? | | ???????????# + #?? | | ???????????# =% g| ###### !! #?? | | ???????? w ! #######g###### #????# !! #?? | | ???????????????????# =[g= ## #????# ! #?? | | ???????????????????# """"@%! ## #????#% #?? | | ???????????????????# """"!| ## #######+########?? | | ???????????????????# """"! Y ## ## % #???????? | | ???????????????????# """" ## ## """ *#???????? | | ???????????????????# """" + + "Y ###?????? | | ???????????????????# """" ### # " " # #?????? | | ???????????????????# #?# # #####???? | | ???????????????????###########?# + %! %+[! #???? | | ???????????????????????????????# # ! *###%#???? | | ???????????????????????????????# # ###+##### | | ???????????????????????????????# # # % | | ???????????????????????????????# # [[ # | | ??????????????????############## # [[ ! # | | ??????????????????# # #### #### | | ??????????????????# # #??###??# | | ??????????????????# # #####???# | | ??????????????????# # ^ #???# | | ??????????????????# # #???# | | ??????????????????# + #???# | | ??????????????????# # #???# | | ??????????????????# # #???# | | ??????????????????# # #???# | | ??????????????????# # ###########+# | | ??????????????????# # | | ??????????????????# # | +----------------------------------------------------+ Best States ------------- Heat Dissipation 34 Energy Generation 16 Energy Capacity 290 Matter Stores 300 Matter Capacity 300 Sight Range 20 Robot Scan Range 15 Terrain Scan Range 16 Terrain Scan Density 10 Evasion (%) 64 Melee Accuracy 6 Target Analysis 5 Offensive Hacking 12 Defensive Hacking 10 Item Schematics ----------------- None Robot Schematics ------------------ None Fabricated ------------ Nothing Repaired ---------- Aluminum Leg | 31% | -10/Materials Imp. Terrain Scanner | 36% | -9/Materials Nuclear Core | 34% | -7/Factory Aluminum Leg | 21% | -7/Factory Studied --------- None Alien Tech Used ----------------- None Achievements -------------- Ew, Corruption GoHome() Insider Info Challenges ------------ None Game ------ Seed DamperDoorMatterbank Manual? 0 Play Time 00:49:02 Cumulative 32.6 hours Start 2026.03.16 @ 13:36:42 End 2026.03.16 @ 14:26:40 Sessions 1 Manual Loads 0 Difficulty Rogue Special Mode None Game No. 61 Rogue 61 Adventurer 0 Explorer 0 Win Type - Total 0 Types 0/0/0/0/0/0/0/0/0/0 Lore% 29 Gallery% 25 Achievement% 23 Wizard Run 0 Options --------- Layout 1 ASCII 0 Keyboard 0 Movement Numpad Keybinds 0 Fullscreen 1 Font 24/Smallcaps Map View 50x35 Zoom Use 0% Tactical HUD 1 Map Filters NONE Filters NONE Steam 1 RUN: e5b961e7-0e3f-4f0a-a33a-802f7cd9d23a